Cogmind - Beta 12 *** ADVENTURER MODE // 2023.11.15 @ 05:18:28 Player: Salty Result: Self-destructed Performance ------------- Evolutions (1) 500 Regions Visited (3) 600 Robots Destroyed (47) 235 Value Destroyed (1172) 1172 Prototype IDs (3) 60 Alien Tech Used (0) 0 Bonus (0) 0 TOTAL SCORE: 2567 Bonus ------- None Cogmind --------- Core Integrity 139/400 Matter 300/300 Energy 100/100 System Corruption 0% Temperature Cool (0) Movement Core (100) Ox1 Location -9/Materials Parts ------- > --- POWER (1) -------- (None) > --- PROPULSION (2) --- (None) > --- UTILITY (3) ------ Signal Interpreter > --- WEAPON (3) ------- Maul Maul > --- INVENTORY (5) ---- Heavy Armor Plating Peak State ------------ > --- POWER ------------ Improved Ion Engine > --- PROPULSION ------- Improved Treads Improved Treads > --- UTILITY ---------- Sensor Array Signal Interpreter Hardened Light Armor Plating > --- WEAPON ----------- Improved EM Shotgun Maul Maul > --- INVENTORY -------- (None) [Rating: 17] Favorites ----------- Power Ion Engine Engine Ion Engine Propulsion Aluminum Leg Treads Improved Treads Leg Aluminum Leg Utility Sensor Array Device Sensor Array Processor Signal Interpreter Protection Hardened Light Armor Plating Weapon Light Cannon Energy Gun Improved EM Shotgun Energy Cannon Light EM Pulse Cannon Ballistic Gun Assault Rifle Ballistic Cannon Light Cannon Launcher Mini Grenade Launcher Impact Weapon Maul Build | -11 -10 -10 -9 ------- Run | Jun Mat Min Mat Slots Evolved 2 | . . . 2 Power . | . . . . Propulsion . | . . . . Utility 1 | . . . 1 Weapon 1 | . . . 1 Parts Attached 25 | 5 5 2 13 Power 4 | 1 . 1 2 Engine 4 | 1 . 1 2 Core . | . . . . Reactor . | . . . . Propulsion 6 | 2 . . 4 Treads 4 | . . . 4 Leg 2 | 2 . . . Wheel . | . . . . Hover . | . . . . Flight . | . . . . Utility 4 | . 3 . 1 Device 1 | . 1 . . Storage . | . . . . Processor 1 | . 1 . . Hackware . | . . . . Protection 2 | . 1 . 1 Artifact . | . . . . Weapon 11 | 2 2 1 6 Energy Gun 3 | . . . 3 Energy Cannon 1 | . . . 1 Ballistic Gun 2 | 2 . . . Ballistic Cannon 2 | . 2 . . Launcher 1 | . . 1 . Special Weapon . | . . . . Impact Weapon 2 | . . . 2 Slashing Weapon . | . . . . Piercing Weapon . | . . . . Special Melee Weapon . | . . . . Unidentified Prototypes 1 | . . . 1 Parts Lost 12 | . . 4 8 Power 2 | . . 1 1 Propulsion 4 | . . 2 2 Utility 2 | . . . 2 Weapon 4 | . . 1 3 Highest Loss Streak 5 | . . 3 5 To Critical Strikes . | . . . . Average Slot Usage (%) 85 | . 96 80 80 Engine 12 | . 14 13 10 Treads 6 | . . . 15 Leg 12 | . 28 10 . Device 11 | . 12 14 8 Processor 11 | . 8 14 11 Protection 3 | . 3 . 4 Energy Gun 2 | . . . 6 Ballistic Gun 6 | . 20 . . Ballistic Cannon 10 | . 7 20 4 Launcher 3 | . . 7 4 Impact Weapon 4 | . . . 12 Naked Turns . | . . . . Heaviest Build 22 | 8 12 12 22 Greatest Support 46 | 20 20 20 46 Greatest Overweight (x) 4 | . . 3 4 Average Overweight (x) . | . . 1 . Largest Inventory Capacity 5 | 5 5 5 5 Average Capacity 5 | 5 5 5 5 Most Carried 3 | 2 2 1 3 Average Carried . | . . . . Final Capacity 5 | 5 5 5 5 Final Carried 2 | . . . 2 Class Distribution -------------------- 91% | Mutant 6% | Scavenger-Mutant Dominant Class ---------------- Mutant | -10/Materials Mutant | -10/Mines Mutant | -9/Materials Resources | -11 -10 -10 -9 ----------- Run | Jun Mat Min Mat Matter Collected 825 | 58 460 77 230 Remotely . | . . . . Salvage Created 1390 | . 578 104 708 Parts 76 | . 38 5 33 Haulers Intercepted 4 | . 2 . 2 Recyclers Shooed 3 | . 3 . . Parts Field Recycled . | . . . . Retrieved Matter . | . . . . Parts Self-Destructed . | . . . . Prevented . | . . . . Kills | -11 -10 -10 -9 ------- Run | Jun Mat Min Mat Combat Hostiles Destroyed 36 | . 12 6 18 Melee 3 | . . . 3 Guns 7 | . 7 . . Cannons 19 | . 5 6 8 Classes Destroyed 7 | . 5 1 1 Worker 1 | . 1 . . Hauler 4 | . 2 . 2 Watcher 6 | . 3 . 3 Swarmer 12 | . 3 3 6 Grunt 14 | . 9 . 5 Sentry 7 | . . . 7 Demolisher 2 | . . 2 . Best Kill Streak 6 | . 3 3 6 Combat Bots Only 6 | . 3 3 6 Max Kills in Single Turn 2 | . 2 1 1 Gunslinging . | . . . . Exploded . | . . . . Melee 1 | . . . 1 Uniques/NPCs Destroyed 1 | . . 1 . YI-UF0 (-10/Mines) Combat | -11 -10 -10 -9 -------- Run | Jun Mat Min Mat Damage Taken 1998 | . 219 426 1353 Core 431 | . 8 162 261 Absorbed by Shields . | . . . . Core Remaining (%) 66 | 100 . 32 . Volleys Fired 106 | . 47 16 43 Largest 3 | . 2 2 3 Hottest 110 | . 70 70 110 Shots Fired 180 | . 94 27 59 Gun 97 | . 76 . 21 Cannon 81 | . 18 27 36 Launcher 2 | . . . 2 Special . | . . . . Kinetic 139 | . 94 27 18 Thermal 4 | . . . 4 Explosive 2 | . . . 2 Electromagnetic 35 | . . . 35 Robot Hit Streak 18 | . 14 6 18 Robot Miss Streak 3 | . 3 1 3 Penetration Max . | . . . . Secondary Targets 2 | . 2 . . Max Gunslinging Chain 1 | . 1 . . Shots Hit Robots 164 | . 65 19 80 Core Hits 61 | . 33 9 19 Critical Kills . | . . . . Critical Parts Destroyed 7 | . . . 7 Critical Strikes 14 | . 1 3 10 Blast 5 | . 1 3 1 Smash 9 | . . . 9 Melee Attacks 32 | . . . 32 Impact 32 | . . . 32 Slashing . | . . . . Piercing . | . . . . Sneak Attacks . | . . . . Combat Hostiles . | . . . . Follow-up Attacks 5 | . . . 5 Damage Inflicted 3086 | . 797 318 1971 Guns 839 | . 581 . 258 Cannons 1181 | . 210 313 658 Explosions 58 | . . . 58 Melee 996 | . . . 996 Ramming 12 | . 6 5 1 Kinetic 1378 | . 791 313 274 Thermal 96 | . . . 96 Explosive 14 | . . . 14 Electromagnetic 590 | . . . 590 Impact 996 | . . . 996 Slashing . | . . . . Piercing . | . . . . Highest Corruption . | . . . . Average Corruption . | . . . . Corruption Purged . | . . . . Corruption Blocked . | . . . . Overload Shots . | . . . . Overflow Damage 322 | . . 23 299 Projectiles 23 | . . 23 . Explosions . | . . . . Melee 299 | . . . 299 Knockbacks 10 | . 1 5 4 Impact 3 | . . . 3 Kinetic 6 | . 1 5 . Secondary 1 | . . . 1 Self-Inflicted Damage 2 | . . 2 . Shots . | . . . . Rammed 3 | . . 2 1 Targets Rammed 6 | . 2 3 1 Kicked 3 | . 2 1 . Crushed . | . . . . Highest Temperature 160 | . 54 54 160 Average Temperature 36 | . 19 21 50 Received Heat Transfer 666 | . 129 . 537 Siege Activations . | . . . . Robots Corrupted 2 | . . . 2 Combat Hostiles 2 | . . . 2 Parts Fried 4 | . . . 4 Impact Corruptions 14 | . . . 14 Robots Melted . | . . . . Combat Hostiles . | . . . . Parts Melted . | . . . . Heat Transferred 198 | . . . 198 Parts Sabotaged . | . . . . Parts Stolen . | . . . . Parts Stripped . | . . . . Power Chain Reactions 1 | . . . 1 Missiles Intercepted . | . . . . Alert | -11 -10 -10 -9 ------- Run | Jun Mat Min Mat Peak Influence 299 | . 153 93 299 Initial 23 | . . 23 . Average 73 | . 69 62 88 Maximum Alert Level 1 | . . . 1 Low Security (%) 97 | 100 100 100 93 Level 1 2 | . . . 6 Level 2 . | . . . . Level 3 . | . . . . Level 4 . | . . . . Level 5 . | . . . . High Security . | . . . . Max Security . | . . . . Squads Dispatched 3 | . 2 . 1 Investigation 2 | . 2 . . Extermination . | . . . . Reinforcement 1 | . . . 1 Assault . | . . . . Garrison . | . . . . Intercept . | . . . . Searches Triggered . | . . . . Construction Impeded . | . . . . Haulers Reinforced . | . . . . Active Scanning Responses . | . . . . Cargo Convoy Interrupts . | . . . . Stealth | -11 -10 -10 -9 --------- Run | Jun Mat Min Mat Distress Signals 1 | . 1 . . Communications Jammed . | . . . . Distress Signals . | . . . . Times Spotted 54 | . 17 9 28 Peak Tracking Total 6 | . 4 6 6 Tactical Retreats . | . . . . Traps | -11 -10 -10 -9 ------- Run | Jun Mat Min Mat Traps Triggered 3 | . 3 . . Indirectly . | . . . . Trap Hack Attempts . | . . . . Triggered . | . . . . Disarmed . | . . . . Reprogrammed . | . . . . Reused . | . . . . Traps Extracted . | . . . . Installed . | . . . . Triggered . | . . . . Machines | -11 -10 -10 -9 ---------- Run | Jun Mat Min Mat Machines Disabled 1 | . . . 1 Max in Single Turn 1 | . . . 1 Machines Repaired . | . . . . Machines Sabotaged . | . . . . Overloaded Fab Kills . | . . . . Hacking | -11 -10 -10 -9 --------- Run | Jun Mat Min Mat Machines Accessed 9 | . 6 . 3 Terminals 9 | . 6 . 3 Fabricators . | . . . . Repair Stations . | . . . . Recycling Units . | . . . . Scanalyzers . | . . . . Garrison Access . | . . . . Total Hacks 23 | . 17 . 6 Successful 9 | . 8 . 1 Failed 14 | . 9 . 5 Catastrophic 2 | . 2 . . Database Lockouts . | . . . . Manual . | . . . . Terminals 23 | . 17 . 6 Fabricators . | . . . . Repair Stations . | . . . . Recycling Units . | . . . . Scanalyzers . | . . . . Garrison Access . | . . . . Terminal Hacks 9 | . 8 . 1 Robot Analysis 2 | . 2 . . Prototype ID Bank 1 | . 1 . . Repair Station Index 1 | . 1 . . Alert Level 2 | . 1 . 1 Maintenance Status 2 | . 2 . . Security Status 1 | . 1 . . Fabricator Hacks . | . . . . Repair Station Hacks . | . . . . Recycling Unit Hacks . | . . . . Scanalyzer . | . . . . Garrison Access Hacks . | . . . . Unauthorized Hacks . | . . . . Terminals . | . . . . Fabricators . | . . . . Repair Stations . | . . . . Recycling Units . | . . . . Scanalyzers . | . . . . Garrison Access . | . . . . Data Cores Recovered . | . . . . Used . | . . . . Hacking Detections 5 | . 3 . 2 Full Trace Events . | . . . . Feedback Events . | . . . . Feedback Blocked . | . . . . Robot Schematics Acquired . | . . . . Robots Built . | . . . . Authchips . | . . . . Time . | . . . . Total Robot Build Rating . | . . . . Part Schematics Acquired . | . . . . Parts Built . | . . . . Authchips . | . . . . Time . | . . . . Total Part Build Rating . | . . . . Parts Repaired . | . . . . Time . | . . . . Parts Recycled . | . . . . Recycled Matter . | . . . . Retrieved Matter . | . . . . Retrieved Components . | . . . . Parts Scanalyzed . | . . . . Part Schematics Acquired . | . . . . Parts Damaged . | . . . . Bothacking | -11 -10 -10 -9 ------------ Run | Jun Mat Min Mat Used RIF Installer . | . . . . Robots Hacked . | . . . . Non-combat . | . . . . Combat . | . . . . Robot Hacks Applied . | . . . . Relay Couplers Released . | . . . . Fabnet Peak Effective % . | . . . . Robots Rewired . | . . . . Allies Hacked . | . . . . Hacks Repelled . | . . . . Allies | -11 -10 -10 -9 -------- Run | Jun Mat Min Mat Total Allies . | . . . . Largest Group . | . . . . Highest-Rated Group . | . . . . Highest-Rated Ally . | . . . . Total Orders . | . . . . Ally Attacks . | . . . . Total Damage . | . . . . Kills . | . . . . Allies Corrupted . | . . . . Allies Melted . | . . . . Intel | -11 -10 -10 -9 ------- Run | Jun Mat Min Mat Robot Analysis Total 2 | . 2 . . Derelict Logs Recovered 2 | . . 2 . Drone Launches . | . . . . Drone Recoveries . | . . . . Exploration | -11 -10 -10 -9 ------------- Run | Jun Mat Min Mat Turns Passed 3029 | 54 984 852 1139 Spaces Moved 1726 | 41 692 470 523 Core 337 | 7 . 221 109 Treads 414 | . . . 414 Legs 975 | 34 692 249 . Wheels . | . . . . Hover . | . . . . Flight . | . . . . Fastest Speed 50 | 50 120 100 100 Average Speed 149 | 108 120 168 175 Slowest Speed 250 | 120 120 200 250 Overloaded Moves . | . . . . Propulsion Burnouts . | . . . . Robots Hopped . | . . . . Cave-ins Triggered . | . . . . Exploration Rate (%) 56 | 4 97 74 50 Regions Visited 3 Branch Regions 1 Pre-discovered Areas . | . . . . Known Exits Taken 2 | . 1 1 . Unknown Exits Taken 1 | 1 . . . Scrap Searched 1 | . . 1 . Spaces Dug . | . . . . Terrain Destroyed 22 | . . . 22 Melee . | . . . . Projectile . | . . . . AOE 22 | . . . 22 Terrain Rammed . | . . . . Walls Destroyed . | . . . . Machines Disabled . | . . . . Actions | -11 -10 -10 -9 --------- Run | Jun Mat Min Mat Total 1940 | 50 760 502 628 Wait 17 | . 7 10 . Move 1723 | 40 691 469 523 Hop . | . . . . Pick Up 26 | 5 5 2 14 Fast Attach . | . . . . Attach 22 | 5 4 2 11 Detach . | . . . . Swap 3 | . 1 . 2 Drop 10 | . 3 . 7 Fire 106 | . 47 16 43 Melee 27 | . . . 27 Ram 3 | . . 2 1 Kick 3 | . 2 1 . Crush . | . . . . Escape Stasis . | . . . . Rewire . | . . . . Trap . | . . . . Miscellaneous . | . . . . Route ------- -11/Junkyard -10/Materials (discovered 4 exits: *Mat x3 / *Min) -10/Mines -9/Materials (discovered 4 exits: *Mat / *Min / *Sto x2) History --------- Turn | Location | Event 6 | -11/Junkyard | Discovered new exit (range 15) 55 | -11/Junkyard | Entered Materials 290 | -10/Materials | Discovered new exit (range 3) 301 | -10/Materials | Build established: Mutant 436 | -10/Materials | Discovered new exit (range 9) 455 | -10/Materials | Identified exit to Materials 728 | -10/Materials | Discovered new exit (range 15) 756 | -10/Materials | Identified exit to Mines 840 | -10/Materials | Discovered exit to Materials (range 10) 1039 | -10/Materials | Entered Mines 1109 | -10/Mines | Learned Materials trap positions 1240 | -10/Mines | Learned Materials trap positions 1266 | -10/Mines | Destroyed YI-UF0 1396 | -10/Mines | Assembled infested the area 1441 | -10/Mines | Core integrity fell below 50% 1470 | -10/Mines | Lost 3 parts (1p1n1w) 1833 | -10/Mines | Discovered exit to Materials (range 16) 1891 | -10/Mines | Entered Materials 1891 | -9/Materials | Evolved 2 slots: Utility x1, Weapon x1 1892 | -9/Materials | Loaded intel: 22 trap records 2031 | -9/Materials | Discovered new exit (range 9) 2064 | -9/Materials | Identified exit to Storage 2306 | -9/Materials | Discovered new exit (range 10) 2323 | -9/Materials | Identified exit to Materials 2752 | -9/Materials | Discovered exit to Storage (range 15) 2896 | -9/Materials | Discovered new exit (range 16) 2954 | -9/Materials | Identified exit to Mines 3019 | -9/Materials | Core integrity fell below 50% 3030 | -9/Materials | Self-destructed Last Messages --------------- Imp. Treads destroyed. K-01 Serf collects debris. G-34 Mercenary suffers critical hit (Smash). Destroyed Aluminum Leg. G-34 Mercenary system corrupted by crushing effect. G-34 Mercenary knocked back. G-34 Mercenary system terminally corrupted. K-01 Serf collects debris. Destroyed Flight Unit. S-10 Pest system corrupted by crushing effect. S-10 Pest destroyed. K-01 Serf collects debris. S-10 Pest suffers critical hit (Smash). Destroyed Lgt. Ion Engine. Destroyed Flight Unit. S-10 Pest system corrupted by crushing effect. S-10 Pest system terminally corrupted. Lgt. Assault Rifle fried. K-01 Serf collects debris. R-06 Scavenger collects Flight Unit. Map ----- +----------------------------------------------------+ | ######/################# # #??????????? | | ??# #???????????####### #??????????? | | ??# """#?????????????????# #??????????? | | ??# """#?????????????????##########??????????? | | ??# """#?????????????????????????????????????? | | ??# #?????????????????????????????????????? | | ??# | """#?????????????????????????????????????? | | ??# """#?????????????????????????????????????? | | ??# """#?????????????????????????????????????? | | ??# #?????????????????????????????????????? | | ??##########?????????????????????????????????????? | | ?????????????????????????????????????????????????? | | ?????????????????????????????????????????????????? | | ?????????????????????????????????????????????????? | | ?????????????????????????????????????????????????? | | ??#####??????????????????????????????????????????? | | ^ #??????????????????????????????????????????? | | ^"" ^ #????????????????######????????????????????? | | "Y #????????????????? #????"?#?????????????? | | "" ^ #????????????????? +???"" #?????????????? | | #????????????????? #??"" ????????????^?? | | [ ] #?????????????????# #? """ ??????????????? | | ###########?????????????# # "" ??????????????? | | ##### #?????????????# s # """ #?????????????? | | T ######????????#%% k " ???????????????? | | ## #????????#@ #?? ??????????????^?? | | % ## #????????# #? ?????????????????? | | # ##![ #????????#s %##+####### ???????? | | # ##![ #????????# k ???????? | | " = ##![ ########## % ???????? | | T ## #"""""""##=%[ ???????? | | " """ ## #" !"! "##%=%##+####### ???????? | | # """ ###+##" "## [%#????????????????????? | | # """ r = #????????????????????? | | # >% % au #????????????????????? | | =% #????????????????????? | | ## #"T"######+## %### ##????????????????????? | | ##/#####??? #########?#+#?????????????????????? | | #?? """ #?????????? ?????????????????????? | | """"" #?# """ =#?????????? #????????????????????? | | """"" #?# """ #?????????? #????????????????????? | | """"" #?# #?????????? #????????????????????? | | """"" #?# = #??????????? #????????????????????? | | """"" #??#######??????????? #????????????????????? | | """""?#???????????????????? #????????????????????? | | """""?????????????????????? #????????????????????? | | ???????????????????????##????????????????????? | | ##/??????????????????????????????????????????????? | | ?? ??????????????????????????????????????????????? | | ?????????????????????????????????????????????????? | +----------------------------------------------------+ Best States ------------- Heat Dissipation 28 Energy Generation 14 Energy Capacity 265 Matter Stores 300 Matter Capacity 300 Sight Range 16 Robot Scan Range 14 Terrain Scan Density 10 Armor Coverage 150 Resistance: KI 20 Resistance: TH 20 Resistance: EX 20 Resistance: EM 20 Resistance: I 20 Resistance: S 20 Resistance: P 20 Evasion (%) 55 Recoil Reduction 2 Offensive Hacking 10 Item Schematics ----------------- None Robot Schematics ------------------ None Fabricated ------------ Nothing Alien Tech Used ----------------- None Achievements -------------- I Survived The Infestation Challenges ------------ None Game ------ Seed DrainedSpikedRifle Manual? 0 Play Time 00:22:13 Cumulative 6.9 hours Start 2023.11.15 @ 04:56:34 End 2023.11.15 @ 05:18:28 Sessions 1 Manual Loads 0 Difficulty Adventurer Special Mode None Game No. 4 Rogue 0 Adventurer 4 Explorer 0 Win Type - Total 0 Types 0/0/0/0/0/0/0/0/0 Lore% 15 Gallery% 19 Achievement% 19 Wizard Run 0 Options --------- ASCII 0 Keyboard 0 Movement Mouse Keybinds 0 Fullscreen 2 Font 18/Terminus Map View 76x50 Tactical HUD 0 Map Filters NONE Filters NONE Steam 1 RUN: 4f8110a9-8d22-4cb7-a131-1d23974dc110